Workbook

Sheet Welkom
A1: Model Verlofafrekening
A6: Voor welk type dienstverband wilt u een verlofafrekening doen?
A17: Wanneer verlofuren uitbetalen?
A18: - Wel: verlaten onderwijssector
A19: - Wel: korttijdelijke benoeming
A20: - Niet: overstap naar andere onderwijswerkgever
A22: Let op: dit model gaat ervanuit dat een werknemer al zijn te werken uren in de lesweken maakt.

Sheet Kort tijdelijk (hidden)
O2: 12 | P2: 24
O3: 13 | P3: 24
A4: Afrekening verlofuren bij uitdiensttreding | O4: 14 | P4: 24
O5: 15 | P5: 24
A6: School | G6: Omdat je elke week compensatieverlof opbouwd is het gemiddeld aantal uur verlof per week lager dan 40 | O6: 16 | P6: 24
A7: Naam werknemer | G7: Bij opbouw onbetaald verlof is gerekend met fulltime 40 uur | O7: 17 | P7: 24
A8: OOP zonder lesgebonden en/of behandeltaken? | B8: ja | O8: 18 | P8: 24
A10: Schoolgegevens | O10: 19 | P10: 16
A11: Weken per jaar | B11: =365.25/7 -> 52.17857143 | G11: =G12 -> 2026-01-01 | O11: 20 | P11: 8
A12: Lesweken | B12: =IF(B8="ja",41.475,"") -> 41.475 | G12: =B17 -> 2026-01-01 | L12: 8 | O12: 21 | P12: 0
A13: Verlofweken | B13: =B11-B12 -> 10.70357143 | L13: 12 | O13: 22 | P13: 0
K14: salaris 8 max | L14: =VLOOKUP(L12,salaristabel!$A:$O,'Kort tijdelijk'!L13+2,FALSE) -> 4449 | O14: 23 | P14: 0
A15: Werknemergegevens | O15: 24 | P15: 0
A16: Geboortedatum | B16: 1980-01-01
A17: Datum begin huidige aanstelling | B17: 2026-01-01 | G17: onbetaald verlof | O17: 25 | P17: 0
A18: Schaal | B18: 5 | O18: 26 | P18: 0
A19: Trede | B19: 12 | O19: 27 | P19: 0
A20: Brutoloon | B20: =IF(B18="","",VLOOKUP(B18,salaristabel!$A:$O,'Kort tijdelijk'!B19+2,FALSE)) -> 0 | O20: 28 | P20: 0
A21: Werktijdfactor werknemer | B21: 1 | O21: 29 | P21: 0
A22: Werkdagen per week | B22: 5 | G22: vermindering verlof 20,5% van aantal uur | O22: 30 | P22: 8
A23: Einddatum aanstelling | B23: 2026-07-31 | O23: 31 | P23: 8
A24: Kalenderweken | B24: =IF(B23="","",ROUNDDOWN(NETWORKDAYS(G12,B23),0)/5+(NETWORKDAYS(G12,B23)-ROUNDDOWN(NETWORKDAYS(G12,B23),0))/5) -> 30.4 | G24: =B11*40 -> 2087.142857 | O24: 32 | P24: 8
A25: Opgebouwde uren vakantieverlof | B25: =IF(B24="","",ROUND((B24/B11*I29*B21)+((1659/B12)-40)*(B24-B37)*B21,0)) -> 263 | G25: =1659/G24 -> 0.7948665298 | O25: 33 | P25: 8
G26: =1-G25 -> 0.2051334702 | H26: geboortejaar | I26: =YEAR(B16) -> 1980 | O26: 34 | P26: 8
A27: Verplichte werkdagen op niet-lesdagen * | B27: 0 | H27: jaar afrekening | I27: =YEAR(B23) -> 2026 | O27: 35 | P27: 8
B28: =IF(B27="","",ROUND(B27/B22*B21*40,0)) -> 0 | H28: leeftijd | I28: =I27-I26 -> 46 | O28: 36 | P28: 8
I29: =IF(B8="nee",428,428+IF(B20>=L14,8,0)+VLOOKUP(I28,$O:$P,2,FALSE)) -> 452 | O29: 37 | P29: 8
A30: Aantal hele weken onbetaald verlof ** | O30: 38 | P30: 8
A31: Aantal losse dagen onbetaald verlof ** | O31: 39 | P31: 8
A32: Vermindering recht verlof | B32: =IF(B22="","",ROUND((B30*40*B21+B31/B22*40*B21)*G26,0)) -> 0 | O32: 40 | P32: 16
A33: Netto opgebouwde uren vakantieverlof | B33: =IFERROR(B25-B32,0) -> 263 | O33: 41 | P33: 16
O34: 42 | P34: 16
A35: Aantal hele weken genoten verlof | O35: 43 | P35: 16
A36: Aantal losse dagen genoten verlof | O36: 44 | P36: 16
A37: Totaal genoten verlofweken | B37: =IF(B22="","",B35+B36/B22) -> 0 | O37: 45 | P37: 24
A38: Genoten uren verlof | B38: =IF(B22="","",ROUND(B37*B21*40,0)) -> 0 | O38: 46 | P38: 24
O39: 47 | P39: 24
A40: =IF(B25="","",IF(B25=B38,"Opgebouwde verlof is volledig besteed***",IF(B25>B38,"Nog uit te betalen verlofuren***","Te veel genoten verlofuren***"))) -> Nog uit te betalen verlofuren*** | B40: =IFERROR(IF(B33-B28-B38>0,B33-B28-B38,-(B33-B28-B38)),"nog niet alle gegevens zijn juist gevuld") -> 263 | O40: 48 | P40: 24
O41: 49 | P41: 24
O42: 50 | P42: 32
O43: 51 | P43: 32
O44: 52 | P44: 32
A45: * denk hierbij aan terugkomdagen tijdens vakantie, studiedagen in een lesweek, etc. | O45: 53 | P45: 32
A46: ** alleen van toepassing bij onbetaald verlof > 1 maand | O46: 54 | P46: 32
A47: *** deze berekening betreft een schatting | O47: 55 | P47: 40
O48: 56 | P48: 40
O49: 57 | P49: 40
A50: Let op: dit model gaat ervanuit dat een werknemer al zijn te werken uren in de lesweken maakt. | O50: 58 | P50: 40
O51: 59 | P51: 40
O52: 60 | P52: 48
O53: 61 | P53: 48
O54: 62 | P54: 48
O55: 63 | P55: 48
O56: 64 | P56: 48
O57: 65 | P57: 48
O58: 66 | P58: 48
O59: 67 | P59: 48
O60: 68 | P60: 48
O61: 69 | P61: 48
O62: 70 | P62: 48
O63: 71 | P63: 48
O64: 72 | P64: 48
O65: 73 | P65: 48
O66: 74 | P66: 48
O67: 75 | P67: 48
O68: 76 | P68: 48
O69: 77 | P69: 48
O70: 78 | P70: 48
O71: 79 | P71: 48
O72: 80 | P72: 48
O73: 81 | P73: 48
O74: 82 | P74: 48
O75: 83 | P75: 48
O76: 84 | P76: 48
O77: 85 | P77: 48
O78: 86 | P78: 48
O79: 87 | P79: 48
O80: 88 | P80: 48
O81: 89 | P81: 48
O82: 90 | P82: 48
O83: 91 | P83: 48
O84: 92 | P84: 48
O85: 93 | P85: 48
O86: 94 | P86: 48
O87: 95 | P87: 48
O88: 96 | P88: 48
O89: 97 | P89: 48
O90: 98 | P90: 48

Sheet salaristabel (hidden)
A1: Schaal | B1: ▲ | C1: 1 | D1: 2 | E1: 3 | F1: 4 | G1: 5 | H1: 6 | I1: 7 | J1: 8 | K1: 9 | L1: 10 | M1: 11 | N1: 12 | O1: 13 | P1: 14 | Q1: 15 | R1: 16 | S1: 17 | T1: 18 | U1: 19 | V1: 20
A2: A10 | B2: Directie | C2: 0 | D2: 0 | E2: 0 | F2: 0 | G2: 0 | H2: 0 | I2: 0 | J2: 0 | K2: 0 | L2: 0 | M2: 0 | N2: 0 | O2: 0 | P2: 0 | Q2: 0 | R2: 0 | S2: 0 | T2: 0 | U2: 0 | V2: 0
A3: A11 | B3: Directie | C3: 3644 | D3: 3817 | E3: 4015 | F3: 4213 | G3: 4409 | H3: 4629 | I3: 4873 | J3: 5138 | K3: 5427 | L3: 5740 | M3: 6074 | N3: 6432 | P3: 0 | Q3: 0 | R3: 0 | S3: 0 | T3: 0 | U3: 0 | V3: 0
A4: A12 | B4: Directie | C4: 3659 | D4: 3874 | E4: 4125 | F4: 4376 | G4: 4627 | H4: 4910 | I4: 5225 | J4: 5577 | K4: 5960 | L4: 6378 | M4: 6828 | N4: 7313 | P4: 0 | Q4: 0 | R4: 0 | S4: 0 | T4: 0 | U4: 0 | V4: 0
A5: A13 | B5: Directie | C5: 5691 | D5: 5889 | E5: 6088 | F5: 6285 | G5: 6483 | H5: 6682 | I5: 6879 | J5: 7076 | K5: 7274 | L5: 7471 | M5: 7670 | N5: 7867 | O5: 8065 | P5: 0 | Q5: 0 | R5: 0 | S5: 0 | T5: 0 | U5: 0 | V5: 0
A6: D11 | B6: Directie | C6: 0 | D6: 0 | E6: 0 | F6: 0 | G6: 0 | H6: 0 | I6: 0 | J6: 0 | K6: 0 | L6: 0 | M6: 0 | N6: 0 | O6: 0 | P6: 0 | Q6: 0 | R6: 0 | S6: 0 | T6: 0 | U6: 0 | V6: 0
A7: D12 | B7: Directie | C7: 3659 | D7: 3874 | E7: 4125 | F7: 4376 | G7: 4627 | H7: 4910 | I7: 5225 | J7: 5577 | K7: 5960 | L7: 6378 | M7: 6828 | N7: 7313 | P7: 0 | Q7: 0 | R7: 0 | S7: 0 | T7: 0 | U7: 0 | V7: 0
A8: D13 | B8: Directie | C8: 5691 | D8: 5889 | E8: 6088 | F8: 6285 | G8: 6483 | H8: 6682 | I8: 6879 | J8: 7076 | K8: 7274 | L8: 7471 | M8: 7670 | N8: 7867 | O8: 8065 | P8: 0 | Q8: 0 | R8: 0 | S8: 0 | T8: 0 | U8: 0 | V8: 0
A9: D14 | B9: Directie | C9: 6517 | D9: 6681 | E9: 7004 | F9: 7209 | G9: 7416 | H9: 7621 | I9: 7828 | J9: 8036 | K9: 8253 | L9: 8478 | M9: 8708 | P9: 0 | Q9: 0 | R9: 0 | S9: 0 | T9: 0 | U9: 0 | V9: 0
A10: D15 | B10: Directie | C10: 6841 | D10: 7004 | E10: 7209 | F10: 7621 | G10: 7828 | H10: 8036 | I10: 8253 | J10: 8478 | K10: 8708 | L10: 8984 | M10: 9270 | N10: 9562 | P10: 0 | Q10: 0 | R10: 0 | S10: 0 | T10: 0 | U10: 0 | V10: 0
A11: LB | B11: Leerkrachten | C11: 3622 | D11: 3710 | E11: 3821 | F11: 3933 | G11: 4046 | H11: 4185 | I11: 4348 | J11: 4533 | K11: 4742 | L11: 4975 | M11: 5234 | N11: 5520 | O11: 0 | P11: 0 | Q11: 0 | R11: 0 | S11: 0 | T11: 0 | U11: 0 | V11: 0
A12: LC | B12: Leerkrachten | C12: 3644 | D12: 3817 | E12: 4015 | F12: 4213 | G12: 4409 | H12: 4629 | I12: 4873 | J12: 5138 | K12: 5427 | L12: 5740 | M12: 6074 | N12: 6432 | O12: 0 | P12: 0 | Q12: 0 | R12: 0 | S12: 0 | T12: 0 | U12: 0 | V12: 0
A13: LD | B13: Leerkrachten | C13: 3659 | D13: 3874 | E13: 4125 | F13: 4376 | G13: 4627 | H13: 4910 | I13: 5225 | J13: 5577 | K13: 5960 | L13: 6378 | M13: 6828 | N13: 7313 | O13: 0 | P13: 0 | Q13: 0 | R13: 0 | S13: 0 | T13: 0 | U13: 0 | V13: 0
A14: LE | B14: Leerkrachten | C14: 4695 | D14: 4870 | E14: 5025 | F14: 5341 | G14: 5691 | H14: 6011 | I14: 6329 | J14: 6649 | K14: 6969 | L14: 7287 | M14: 7605 | N14: 8065 | O14: 0 | P14: 0 | Q14: 0 | R14: 0 | S14: 0 | T14: 0 | U14: 0 | V14: 0
A15: LIOa | B15: Leerkrachten | C15: 1811 | D15: 0 | E15: 0 | F15: 0 | G15: 0 | H15: 0 | I15: 0 | J15: 0 | K15: 0 | L15: 0 | M15: 0 | N15: 0 | O15: 0 | P15: 0 | Q15: 0 | R15: 0 | S15: 0 | T15: 0 | U15: 0 | V15: 0
A16: LIOb | B16: Leerkrachten | C16: 1822 | D16: 0 | E16: 0 | F16: 0 | G16: 0 | H16: 0 | I16: 0 | J16: 0 | K16: 0 | L16: 0 | M16: 0 | N16: 0 | O16: 0 | P16: 0 | Q16: 0 | R16: 0 | S16: 0 | T16: 0 | U16: 0 | V16: 0
A17: 1 | B17: Onderwijs ondersteunend personeel | C17: 2559.54 | D17: 2559.54 | E17: 2559.54 | F17: 2580 | G17: 2634 | H17: 2689 | I17: 2743 | J17: 0 | K17: 0 | L17: 0 | M17: 0 | N17: 0 | O17: 0 | P17: 0 | Q17: 0 | R17: 0 | S17: 0 | T17: 0 | U17: 0 | V17: 0
A18: 10 | B18: Onderwijs ondersteunend personeel | C18: 3326 | D18: 3659 | E18: 3835 | F18: 4030 | G18: 4201 | H18: 4371 | I18: 4534 | J18: 4695 | K18: 4870 | L18: 5025 | M18: 5185 | N18: 5341 | O18: 5520 | P18: 0 | Q18: 0 | R18: 0 | S18: 0 | T18: 0 | U18: 0 | V18: 0
A19: 11 | B19: Onderwijs ondersteunend personeel | C19: 3644 | D19: 3817 | E19: 4015 | F19: 4213 | G19: 4409 | H19: 4629 | I19: 4873 | J19: 5138 | K19: 5427 | L19: 5740 | M19: 6074 | N19: 6432 | P19: 0 | Q19: 0 | R19: 0 | S19: 0 | T19: 0 | U19: 0 | V19: 0
A20: 12 | B20: Onderwijs ondersteunend personeel | C20: 3659 | D20: 3874 | E20: 4125 | F20: 4376 | G20: 4627 | H20: 4910 | I20: 5225 | J20: 5577 | K20: 5960 | L20: 6378 | M20: 6828 | N20: 7313 | P20: 0 | Q20: 0 | R20: 0 | S20: 0 | T20: 0 | U20: 0 | V20: 0
A21: 13 | B21: Onderwijs ondersteunend personeel | C21: 5691 | D21: 5889 | E21: 6088 | F21: 6285 | G21: 6483 | H21: 6682 | I21: 6879 | J21: 7076 | K21: 7274 | L21: 7471 | M21: 7670 | N21: 7867 | O21: 8065 | P21: 0 | Q21: 0 | R21: 0 | S21: 0 | T21: 0 | U21: 0 | V21: 0
A22: 14 | B22: Onderwijs ondersteunend personeel | C22: 6517 | D22: 6681 | E22: 7004 | F22: 7209 | G22: 7416 | H22: 7621 | I22: 7828 | J22: 8036 | K22: 8253 | L22: 8478 | M22: 8708 | P22: 0 | Q22: 0 | R22: 0 | S22: 0 | T22: 0 | U22: 0 | V22: 0
A23: 15 | B23: Onderwijs ondersteunend personeel | C23: 6841 | D23: 7004 | E23: 7209 | F23: 7621 | G23: 7828 | H23: 8036 | I23: 8253 | J23: 8478 | K23: 8708 | L23: 8984 | M23: 9270 | N23: 9562 | P23: 0 | Q23: 0 | R23: 0 | S23: 0 | T23: 0 | U23: 0 | V23: 0
A24: 16 | B24: Onderwijs ondersteunend personeel | C24: 7416 | D24: 7621 | E24: 7828 | F24: 8253 | G24: 8478 | H24: 8708 | I24: 8984 | J24: 9270 | K24: 9562 | L24: 9868 | M24: 10179 | N24: 10503 | P24: 0 | Q24: 0 | R24: 0 | S24: 0 | T24: 0 | U24: 0 | V24: 0
A25: 2 | B25: Onderwijs ondersteunend personeel | C25: 2559.54 | D25: 2559.54 | E25: 2580 | F25: 2641 | G25: 2702 | H25: 2764 | I25: 2825 | J25: 2886 | O25: 0 | P25: 0 | Q25: 0 | R25: 0 | S25: 0 | T25: 0 | U25: 0 | V25: 0
A26: 3 | B26: Onderwijs ondersteunend personeel | C26: 2559.54 | D26: 2574 | E26: 2651 | F26: 2729 | G26: 2806 | H26: 2884 | I26: 2961 | J26: 3039 | K26: 3116 | O26: 0 | P26: 0 | Q26: 0 | R26: 0 | S26: 0 | T26: 0 | U26: 0 | V26: 0
A27: 4 | B27: Onderwijs ondersteunend personeel | C27: 2559.54 | D27: 2598 | E27: 2673 | F27: 2748 | G27: 2822 | H27: 2897 | I27: 2971 | J27: 3046 | K27: 3121 | L27: 3195 | M27: 3270 | O27: 0 | P27: 0 | Q27: 0 | R27: 0 | S27: 0 | T27: 0 | U27: 0 | V27: 0
A28: 5 | B28: Onderwijs ondersteunend personeel | C28: 2559.54 | D28: 2637 | E28: 2723 | F28: 2810 | G28: 2896 | H28: 2982 | I28: 3068 | J28: 3154 | K28: 3240 | L28: 3326 | M28: 3412 | O28: 0 | P28: 0 | Q28: 0 | R28: 0 | S28: 0 | T28: 0 | U28: 0 | V28: 0
A29: 6 | B29: Onderwijs ondersteunend personeel | C29: 2672 | D29: 2766 | E29: 2859 | F29: 2953 | G29: 3047 | H29: 3141 | I29: 3235 | J29: 3329 | K29: 3422 | L29: 3516 | M29: 3610 | O29: 0 | P29: 0 | Q29: 0 | R29: 0 | S29: 0 | T29: 0 | U29: 0 | V29: 0
A30: 7 | B30: Onderwijs ondersteunend personeel | C30: 2798 | D30: 2902 | E30: 3005 | F30: 3109 | G30: 3212 | H30: 3316 | I30: 3419 | J30: 3523 | K30: 3626 | L30: 3730 | M30: 3833 | N30: 3937 | O30: 0 | P30: 0 | Q30: 0 | R30: 0 | S30: 0 | T30: 0 | U30: 0 | V30: 0
A31: 8 | B31: Onderwijs ondersteunend personeel | C31: 3022 | D31: 3152 | E31: 3281 | F31: 3411 | G31: 3541 | H31: 3671 | I31: 3800 | J31: 3930 | K31: 4060 | L31: 4190 | M31: 4320 | N31: 4449 | O31: 0 | P31: 0 | Q31: 0 | R31: 0 | S31: 0 | T31: 0 | U31: 0 | V31: 0
A32: 9 | B32: Onderwijs ondersteunend personeel | C32: 3326 | D32: 3496 | E32: 3835 | F32: 4030 | G32: 4201 | H32: 4371 | I32: 4534 | J32: 4695 | K32: 4870 | L32: 5025 | O32: 0 | P32: 0 | Q32: 0 | R32: 0 | S32: 0 | T32: 0 | U32: 0 | V32: 0
A33: BBL | B33: Onderwijs ondersteunend personeel | C33: 1279.77 | D33: 1919.66 | E33: 2559.54 | F33: 0 | G33: 0 | H33: 0 | I33: 0 | J33: 0 | K33: 0 | L33: 0 | M33: 0 | N33: 0 | O33: 0 | P33: 0 | Q33: 0 | R33: 0 | S33: 0 | T33: 0 | U33: 0 | V33: 0
A34: Minjl | B34: Onderwijs ondersteunend personeel | C34: 2559.54 | D34: 0 | E34: 0 | F34: 0 | G34: 0 | H34: 0 | I34: 0 | J34: 0 | K34: 0 | L34: 0 | M34: 0 | N34: 0 | O34: 0 | P34: 0 | Q34: 0 | R34: 0 | S34: 0 | T34: 0 | U34: 0 | V34: 0
A35: Vast1 | B35: Onderwijs ondersteunend personeel | C35: 0 | D35: 0 | E35: 0 | F35: 0 | G35: 0 | H35: 0 | I35: 0 | J35: 0 | K35: 0 | L35: 0 | M35: 0 | N35: 0 | O35: 0 | P35: 0 | Q35: 0 | R35: 0 | S35: 0 | T35: 0 | U35: 0 | V35: 0

Sheet Vast dienstverband (hidden)
O2: 12 | P2: 24
O3: 13 | P3: 24
A4: Afrekening verlofuren bij uitdiensttreding | O4: 14 | P4: 24
O5: 15 | P5: 24
A6: School | G6: Omdat je elke week compensatieverlof opbouwd is het gemiddeld aantal uur verlof per week lager dan 40 | O6: 16 | P6: 24
A7: Naam werknemer | G7: Bij opbouw onbetaald verlof is gerekend met fulltime 40 uur | O7: 17 | P7: 24
A8: OOP zonder lesgebonden en/of behandeltaken? | B8: ja | O8: 18 | P8: 24
A10: Schoolgegevens | O10: 19 | P10: 16
A11: Weken per jaar | B11: =365.25/7 -> 52.17857143 | G11: =IF(B8="nee",DATE(IF(MONTH(B23)>9,YEAR(B23),YEAR(B23)-1),10,1),DATE(YEAR(B23),1,1)) -> 2026-01-01 | O11: 20 | P11: 8
A12: Lesweken | B12: =IF(B8="ja",41.475,"") -> 41.475 | G12: =IF(G11>B17,G11,B17) -> 2026-01-01 | L12: 8 | O12: 21 | P12: 0
A13: Verlofweken | B13: =B11-B12 -> 10.70357143 | L13: 12 | O13: 22 | P13: 0
K14: salaris 8 max | L14: =VLOOKUP(L12,salaristabel!$A:$O,L13+2,FALSE) -> 4449 | O14: 23 | P14: 0
A15: Werknemergegevens | O15: 24 | P15: 0
A16: Geboortedatum | B16: 1980-01-01
A17: Datum in dienst | B17: 2025-01-01 | G17: onbetaald verlof | O17: 25 | P17: 0
A18: Schaal | B18: 8 | O18: 26 | P18: 0
A19: Trede | B19: 11 | O19: 27 | P19: 0
A20: Brutoloon | B20: =IF(B18="","",VLOOKUP(B18,salaristabel!$A:$O,B19+2,FALSE)) -> 4320 | O20: 28 | P20: 0
A21: Werktijdfactor werknemer | B21: 1
A22: Werkdagen per week | B22: 5 | G22: vermindering verlof 20,5% van aantal uur | O22: 29 | P22: 0
A23: Datum uit dienst | B23: 2026-07-31 | O23: 30 | P23: 8
A24: =IF(B8="ja","Kalenderweken na 1 januari","Kalenderweken na 1 oktober") -> Kalenderweken na 1 januari | B24: =IF(B23="","",ROUNDDOWN(NETWORKDAYS(G12,B23),0)/5+(NETWORKDAYS(G12,B23)-ROUNDDOWN(NETWORKDAYS(G12,B23),0))/5) -> 30.4 | G24: =B11*40 -> 2087.142857 | O24: 31 | P24: 8
A25: Opgebouwde uren vakantieverlof | B25: =IF(B24="","",ROUND((B24/B11*I29*B21)+((1659/B12)-40)*(B24-B37)*B21,0)) -> 263 | G25: =1659/G24 -> 0.7948665298 | O25: 32 | P25: 8
G26: =1-G25 -> 0.2051334702 | H26: geboortejaar | I26: =YEAR(B16) -> 1980 | O26: 33 | P26: 8
A27: Verplichte werkdagen op niet-lesdagen* | B27: 0 | H27: jaar afrekening | I27: =YEAR(B23) -> 2026 | O27: 34 | P27: 8
B28: =IF(B27="","",ROUND(B27/B22*B21*40,0)) -> 0 | H28: leeftijd | I28: =I27-I26 -> 46 | O28: 35 | P28: 8
I29: =IF(B8="nee",428,428+IF(B20>=L14,8,0)+VLOOKUP(I28,$O:$P,2,FALSE)) -> 452 | O29: 36 | P29: 8
A30: Aantal hele weken onbetaald verlof ** | B30: 0 | O30: 37 | P30: 8
A31: Aantal losse dagen onbetaald verlof ** | B31: 0 | O31: 38 | P31: 8
A32: Vermindering recht verlof | B32: =IF(B22="","",ROUND((B30*40*B21+B31/B22*40*B21)*G26,0)) -> 0 | I32: =B24/B11*I29*B21 -> 263.3418207 | O32: 39 | P32: 8
A33: Netto opgebouwde uren vakantieverlof | B33: =IFERROR(B25-B32,0) -> 263 | O33: 40 | P33: 16
O34: 41 | P34: 16
A35: Aantal hele weken genoten verlof | O35: 42 | P35: 16
A36: Aantal losse dagen genoten verlof | O36: 43 | P36: 16
A37: Totaal genoten verlofweken | B37: =IF(B22="","",B35+B36/B22) -> 0 | O37: 44 | P37: 16
A38: Genoten uren verlof | B38: =IF(B22="","",ROUND(B37*B21*40,0)) -> 0 | O38: 45 | P38: 24
O39: 46 | P39: 24
A40: =IF(B25="","",IF((B33-B28-B38)=0,"Opgebouwde verlof is volledig besteed***",IF((B33-B28-B38)>0,"Nog uit te betalen verlofuren***","Te veel genoten verlofuren***"))) -> Nog uit te betalen verlofuren*** | B40: =IFERROR(IF(B33-B28-B38>0,B33-B28-B38,-(B33-B28-B38)),"nog niet alle gegevens zijn juist gevuld") -> 263 | O40: 47 | P40: 24
O41: 48 | P41: 24
O42: 49 | P42: 24
O43: 50 | P43: 32
A44: * denk hierbij aan terugkomdagen tijdens vakantie, studiedagen in een lesweek, etc. | O44: 51 | P44: 32
A45: ** alleen van toepassing bij onbetaald verlof > 1 maand | O45: 52 | P45: 32
A46: *** deze berekening betreft een schatting | O46: 53 | P46: 32
O47: 54 | P47: 32
O48: 55 | P48: 40
A49: Let op: dit model gaat ervanuit dat een werknemer al zijn te werken uren in de lesweken maakt. | O49: 56 | P49: 40
O50: 57 | P50: 40
O51: 58 | P51: 40
O52: 59 | P52: 40
O53: 60 | P53: 48
O54: 61 | P54: 48
O55: 62 | P55: 48
O56: 63 | P56: 48
O57: 64 | P57: 48
O58: 65 | P58: 48
O59: 66 | P59: 48
O60: 67 | P60: 48
O61: 68 | P61: 48
O62: 69 | P62: 48
O63: 70 | P63: 48
O64: 71 | P64: 48
O65: 72 | P65: 48
O66: 73 | P66: 48
O67: 74 | P67: 48
O68: 75 | P68: 48
O69: 76 | P69: 48
O70: 77 | P70: 48
O71: 78 | P71: 48
O72: 79 | P72: 48
O73: 80 | P73: 48
O74: 81 | P74: 48
O75: 82 | P75: 48
O76: 83 | P76: 48
O77: 84 | P77: 48
O78: 85 | P78: 48
O79: 86 | P79: 48
O80: 87 | P80: 48
O81: 88 | P81: 48
O82: 89 | P82: 48
O83: 90 | P83: 48
O84: 91 | P84: 48
O85: 92 | P85: 48
O86: 93 | P86: 48
O87: 94 | P87: 48
O88: 95 | P88: 48
O89: 96 | P89: 48
O90: 97 | P90: 48
O91: 98 | P91: 48

Sheet Toelichting (hidden)
A1: Toelichting op berekening: SCHATTING VAKANTIEVERLOFURENSALDO
A3: Met dit model kan het vakantieverlofsaldo op enig moment worden geschat uitgaande van de volgende uitgangspunten:
A5: Schoolgegevens: Aantal weken per jaar = 52,18 Aantal lesweken = door school vastgesteld gemiddeld aantal weken per jaar waarin les wordt gegeven
A7: Opbouw en opname Voor OP en OOP met les of behandeltaken: - Werknemer heeft jaarlijks recht op 428 uur vakantieverlof (incl. verlof tijdens feestdagen) bij FTE 1 (= jaartaak van 1659 uur), parttime naar rato. - Werknemer bouwt het recht op verlof op van 1 oktober tot 1 oktober. - Werknemer werkt in de lesweken per jaar extra uren om alle leerlingenvakanties vrij te kunnen zijn. Dit betekent dat opbouw van vakantieverlof uit 2 onderdelen uiteenvalt: o Aantal gewerkte weken / weken per jaar (52,18) * 428 (recht vakantieverlof) * WTF van de werknemer o (1659 uur / gemiddeld aantal schoolweken) - 40 uur) * aantal gewerkte weken Voor OOP’ers zonder les- of behandeltaken: - Werknemer heeft jaarlijks recht op 428 uur vakantieverlof (incl. verlof tijdens feestdagen) bij FTE 1, parttime naar rato. - Werknemer die wordt beloond vanaf het salarisniveau dat overeenkomt de maximumtrede schaal van 8, ontvangt 8 vakantie-uren per jaar extra, parttime naar rato. - Werknemer heeft conform CAO afhankelijk van zijn leeftijd extra vakantie-uren. - Werknemer verricht het werk niet uitsluitend in leswerken maar spreidt deze uren gelijkmatig over het jaar.
A8: Dienstverband langer dan 1 jaar / korttijdelijk dienstverband - Vast dienstverband: het model gaat uit van gewerkte weken na 1 oktober (OP en OOP met les- en behandeltaken) respectievelijk 1 januari OOP). Hierbij wordt er vanuit gegaan dat de werknemer zijn/haar recht op vakantieverlof voor 1 oktober respectievelijk 1 januari inmiddels heeft opgenomen. - Korttijdelijk dienstverband: het model rekent met de werkelijke duur van het dienstverband per ingangsdatum benoeming. Het is onterecht om te concluderen dat deze werknemers hun opgebouwde recht op vakantieverlof voor 1 oktober c.q. 1 januari al hebben opgenomen aangezien zij normaliter de schoolvakanties niet uitbetaald krijgen. Instructies met betrekking tot gebruik model - Genoten verlof. Betrekt bij het aantal weken/dagen genoten vakantieverlof naast de leerlingenvakanties tevens het verlof tijdens, feestdagen, biddag/dankdag, etc. Let op: bij werknemers van een vast dienstverband rekenen vanaf 1 oktober (OP en OOP met les- of behandeltaken) respectievelijk 1 januari (OOP). In het model wordt het aantal genoten verlofuren als volgt berekend: o Totaal genoten verlofweken * WTF van de werknemer* 40 uur - Gewerkte uren in leerlingenvakanties. Beschouw voor OP en OOP met les- en behandeltaken gewerkte dagen in leerlingenvakanties als vakantiedagen. In het model worden deze uren al als in lesweken gewerkte uren aangemerkt. - Onbetaald verlof. Als een werknemer onbetaald verlof heeft genoten ontstaat er een verlaging van het opgebouwde recht op vakantieverlof. Het advies is om het onbetaald verlof van langer dan 1 maand mee te nemen in deze berekening. Het model corrigeert de opbouw van vakantieverlofrechten bij opname onbetaald verlof op de volgende wijze: o (aantal hele weken * 40 uur * WTF ) + (aantal losse dagen / werkdagen per week * 40 uur * WTF) = aantal genoten uren onbetaald verlof o 428 uur vakantieverlof + 1659 uur (normjaartaak) = 2087 uur per jaar. 428 / 2087 * 100% = 20,51% vakantieverlof o 20,51% * aantal genoten uren onbetaald verlof = vermindering recht verlof"
